bitfinex-derivatives/quotes_SOLF0:USTF0_20260204
["timestamp","ask_amount","ask_price","bid_price","bid_amount"]
[1770215814106,22.92573479,94.63,94.498,3.97179431]
[1770215814304,0.19609804,94.631,94.498,3.97179431]
[1770215814505,0.19609804,94.629,94.498,3.97179431]
[1770215815204,0.19609804,94.629,94.525,3.97179431]
[1770215816211,9.5227,94.648,94.525,3.97179431]
[1770215816412,0.30668117,94.664,94.529,3.97179431]
[1770215816712,148.0091,94.726,94.529,3.97179431]
[1770215816713,0.30668117,94.649,94.529,3.97179431]
[1770215816915,9.5251,94.624,94.529,3.97179431]
[1770215817110,0.30668117,94.649,94.529,3.97179431]
[1770215817507,0.30668117,94.649,94.532,3.97179431]
[1770215817907,0.30668117,94.649,94.481,3.78636003]
[1770215818215,0.41622022,94.646,94.513,3.78636003]
[1770215818709,0.41622022,94.64,94.526,3.78636003]
[1770215819117,0.41622022,94.64,94.493,148.3735]
[1770215819118,0.41622022,94.679,94.569,3.78636003]
[1770215819309,0.41622022,94.709,94.569,3.78636003]
[1770215819516,0.41622022,94.709,94.579,9.5296]
[1770215819714,0.41622022,94.709,94.569,3.78636003]
[1770215820009,0.51393527,94.704,94.593,9.5282]
[1770215820316,0.51393527,94.704,94.569,3.78636003]
[1770215820612,0.51393527,94.679,94.573,3.7375025]
[1770215821208,0.51393527,94.679,94.514,148.3406]
[1770215821209,0.51393527,94.678,94.547,3.7375025]
[1770215821717,9.5222,94.653,94.547,3.7375025]
[1770215822012,0.51393527,94.678,94.547,3.7375025]
[1770215822205,0.51393527,94.678,94.555,3.78341927]
[1770215822407,22.92573479,94.7,94.554,148.278]
[1770215822408,0.42210173,94.71,94.593,3.78341927]
[1770215822613,0.42210173,94.743,94.617,3.78341927]
[1770215822807,0.42210173,94.739,94.636,3.78341927]
[1770215823012,0.42210173,94.739,94.589,148.2226]
[1770215823013,0.42210173,94.739,94.6,3.78341927]
[1770215823214,0.42210173,94.739,94.632,9.5242]
[1770215823413,0.42210173,94.771,94.636,3.78341927]
[1770215823615,0.42210173,94.771,94.647,148.1312]
[1770215823913,0.36792928,94.746,94.591,3.78341927]
[1770215824114,147.9605,94.758,94.527,167.3895]
[1770215824115,0.36792928,94.689,94.561,3.8105055]
[1770215824417,0.36792928,94.689,94.565,3.8105055]
[1770215824608,0.36792928,94.721,94.602,3.8105055]
[1770215824808,0.36792928,94.753,94.63,3.8105055]
[1770215825010,0.36792928,94.709,94.596,3.8105055]
[1770215825207,0.36792928,94.709,94.566,126.1]
[1770215825208,6.247e-05,94.721,94.637,148.1475]
[1770215825414,0.36792928,94.778,94.646,3.8105055]
[1770215825613,0.36792928,94.759,94.612,3.8105055]
[1770215826020,0.42241645,94.729,94.612,3.8105055]
[1770215826206,147.9305,94.777,94.566,274.3583]
[1770215826207,0.42241645,94.819,94.67,3.78326191]
[1770215826407,147.7635,94.884,94.606,444.5865]
[1770215826408,0.42241645,94.815,94.713,9.5161]
[1770215826720,0.42241645,94.799,94.68,3.78326191]
[1770215826904,9.5078,94.796,94.705,9.5169]
[1770215827108,0.42241645,94.799,94.689,3.78326191]
[1770215827307,0.42241645,94.799,94.69,3.78326191]
[1770215828009,0.52668375,94.792,94.69,3.78326191]
[1770215828213,0.52668375,94.792,94.62,3.73112826]
[1770215828214,0.52668375,94.779,94.62,3.73112826]
[1770215828414,0.52668375,94.749,94.62,3.73112826]
[1770215828718,0.52668375,94.761,94.632,3.73112826]
[1770215828917,22.92573479,94.78,94.656,3.73112826]
[1770215829108,0.52668375,94.778,94.656,3.73112826]
[1770215829307,142.94,94.805,94.626,3.73112826]
[1770215829308,0.52668375,94.749,94.626,3.73112826]
[1770215829512,0.52668375,94.749,94.629,3.73112826]
[1770215829711,0.52668375,94.719,94.6,3.73112826]
[1770215830111,22.92573479,94.72,94.566,3.65782392]
[1770215830112,0.67329243,94.688,94.566,3.65782392]
[1770215830808,0.67329243,94.688,94.579,3.65782392]
[1770215831210,0.67329243,94.729,94.579,3.65782392]
[1770215831409,0.67329243,94.729,94.597,148.2095]
[1770215831615,0.67329243,94.765,94.613,3.65782392]
[1770215831817,0.67329243,94.732,94.613,3.65782392]
[1770215832214,0.55203112,94.656,94.542,3.71845457]
[1770215832411,22.92573479,94.65,94.542,3.71845457]
[1770215832811,0.55203112,94.683,94.521,3.71845457]
[1770215833012,0.55203112,94.669,94.521,3.71845457]
[1770215833216,0.55203112,94.669,94.55,9.5324]
[1770215833411,0.55203112,94.669,94.521,3.71845457]
[1770215833617,0.55203112,94.669,94.531,3.71845457]
[1770215833819,0.55203112,94.669,94.55,9.5325]
[1770215834015,0.55203112,94.669,94.531,3.71845457]
[1770215834217,0.49972513,94.7,94.532,148.3123]
[1770215834414,0.49972513,94.7,94.531,3.71845457]
[1770215834415,0.49972513,94.699,94.561,3.74460757]
[1770215834619,0.49972513,94.679,94.561,3.74460757]
[1770215835314,0.49972513,94.686,94.561,3.74460757]
[1770215835711,0.49972513,94.721,94.575,148.2442]
[1770215835909,0.49972513,94.721,94.622,3.74460757]
[1770215836118,22.92573479,94.74,94.622,3.74460757]
[1770215836418,0.4071447,94.739,94.632,9.5242]
[1770215836616,0.4071447,94.739,94.622,3.74460757]
[1770215836811,295.849,94.781,94.532,148.3122]
[1770215836812,0.4071447,94.709,94.589,9.5285]
[1770215837010,19.0275,94.737,94.536,126.4]
[1770215837011,0.4071447,94.739,94.59,3.79089778]
[1770215837417,9.5158,94.717,94.626,9.5248]
[1770215837617,9.5158,94.717,94.593,3.79089778]
[1770215837816,0.4071447,94.709,94.593,3.79089778]
[1770215838416,0.72280486,94.689,94.562,3.63306771]
[1770215838615,0.72280486,94.689,94.578,3.63306771]
[1770215838919,0.72280486,94.751,94.609,3.63306771]
[1770215839120,0.72280486,94.729,94.609,3.63306771]
[1770215839415,143.1,94.757,94.617,3.63306771]
[1770215839615,23.64853965,94.76,94.622,3.63306771]
[1770215839814,23.64853965,94.76,94.59,22.92573479]
[1770215839815,142.9,94.788,94.647,3.63306771]
[1770215840013,0.96505718,94.825,94.766,9.5108]
[1770215840211,0.96505718,94.839,94.704,3.60184281]
[1770215840523,9.5096,94.779,94.694,9.518]
[1770215840821,0.96505718,94.803,94.658,3.60184281]
[1770215841018,1.83763347,94.804,94.68,22.92573479]
[1770215841319,0.96505718,94.865,94.748,3.60184281]
[1770215841617,0.96505718,94.865,94.776,9.5098]
[1770215841825,0.96505718,94.899,94.776,3.60184281]
[1770215842019,1.09231859,94.935,94.796,3.60184281]
[1770215842219,1.09231859,94.897,94.762,3.60184281]
[1770215842424,1.09231859,94.859,94.725,3.60184281]
[1770215842818,22.92573479,94.88,94.751,3.60184281]
[1770215843029,1.09231859,94.879,94.751,3.60184281]
[1770215843224,1.09231859,94.879,94.687,148.0699]
[1770215843225,1.09231859,94.815,94.708,9.5166]
[1770215843519,1.09231859,94.815,94.686,3.60184281]
[1770215843720,1.32048835,94.753,94.649,3.81480982]
[1770215844325,1.32048835,94.721,94.614,3.81480982]
[1770215844511,1.83782271,94.736,94.601,148.2036]
[1770215844512,1.83782271,94.736,94.642,3.81480982]
[1770215844718,1.32048835,94.733,94.605,3.81480982]
[1770215844917,1.32048835,94.719,94.605,3.81480982]
[1770215845321,1.32048835,94.678,94.572,3.81480982]
[1770215845524,1.32048835,94.678,94.537,3.81480982]
[1770215845720,1.32048835,94.735,94.554,3.81480982]
[1770215845925,34.1966754,94.69,94.55,3.81480982]
[1770215846120,1.30938607,94.719,94.563,3.81480982]
[1770215846321,1.30938607,94.659,94.526,3.81480982]
[1770215846626,1.30938607,94.639,94.526,3.81480982]
[1770215846826,1.30938607,94.669,94.526,3.81480982]
[1770215847022,34.1966754,94.67,94.528,3.81480982]
[1770215847225,1.30938607,94.669,94.528,3.81480982]
[1770215847428,1.30938607,94.669,94.551,3.81480982]
[1770215848226,0.93817954,94.656,94.519,3.81480982]
[1770215848423,9.5224,94.652,94.559,9.5316]
[1770215848624,0.93817954,94.689,94.56,3.81480982]
[1770215848822,0.93817954,94.675,94.56,3.81480982]
[1770215849029,0.93817954,94.659,94.531,3.81480982]
[1770215849534,0.93817954,94.659,94.481,148.3927]
[1770215849535,0.93817954,94.619,94.478,3.81480982]
[1770215849720,0.93817954,94.619,94.426,18.94843989]
[1770215849721,0.93817954,94.589,94.445,3.81480982]
[1770215850125,9.5314,94.562,94.451,3.81480982]
[1770215850531,0.93817954,94.589,94.451,3.81480982]
[1770215850726,0.8015731,94.584,94.455,3.81480982]
[1770215851418,9.531,94.566,94.457,3.81480982]
[1770215851623,0.8015731,94.579,94.457,3.81480982]
[1770215851824,0.8015731,94.559,94.457,3.81480982]
[1770215852228,143.2,94.6,94.457,3.81480982]
[1770215852229,0.80512999,94.599,94.457,3.81480982]
[1770215852433,9.5298,94.577,94.46,3.81480982]
[1770215852729,0.80512999,94.599,94.46,3.81480982]
[1770215852919,9.5278,94.598,94.487,9.5389]
[1770215853124,0.80512999,94.604,94.46,3.81480982]
[1770215853319,0.80512999,94.604,94.461,3.81480982]
[1770215853520,9.5279,94.596,94.486,13.35380982]
[1770215853725,0.80512999,94.604,94.487,3.81480982]
[1770215854124,9.5284,94.592,94.487,3.81480982]
[1770215854821,9.5284,94.592,94.488,9.5387]
[1770215855019,9.5284,94.592,94.489,3.81480982]
[1770215856131,9.5299,94.576,94.489,3.81480982]
[1770215856327,9.5299,94.576,94.449,126.46]
[1770215856328,9.5299,94.576,94.458,3.81480982]
[1770215856534,0.88513688,94.575,94.474,9.5402]
[1770215856827,9.5304,94.571,94.474,9.5402]
[1770215857025,34.1966754,94.59,94.459,13.35650982]
[1770215857026,0.88513688,94.57,94.459,13.35650982]
[1770215857223,0.88513688,94.57,94.459,3.81480982]
[1770215857224,9.5311,94.565,94.459,3.81480982]
[1770215857421,34.1966754,94.59,94.459,3.81480982]
[1770215857619,0.88513688,94.589,94.459,3.81480982]
[1770215857825,9.5311,94.565,94.459,3.81480982]
[1770215858039,0.88513688,94.589,94.462,9.5414]
[1770215858232,9.5309,94.566,94.459,3.81480982]
[1770215858728,9.5292,94.584,94.482,3.81480982]
[1770215859032,0.88513688,94.589,94.482,3.81480982]
[1770215859434,9.5308,94.568,94.482,3.81480982]
[1770215859727,0.9239463,94.587,94.466,9.541]
[1770215859930,0.9239463,94.587,94.484,9.5392]
[1770215860236,0.94860297,94.619,94.468,3.81480982]
[1770215860439,0.94860297,94.619,94.494,3.81480982]
[1770215860728,0.94860297,94.619,94.526,3.81480982]
[1770215860932,9.5241,94.634,94.526,3.81480982]
[1770215861135,0.94860297,94.649,94.541,9.5334]
[1770215861324,9.5269,94.606,94.526,3.81480982]
[1770215861528,0.94860297,94.619,94.496,3.81480982]
[1770215862033,9.5274,94.601,94.496,3.81480982]
[1770215862233,0.94860297,94.618,94.512,9.5363]
[1770215862628,0.94860297,94.618,94.449,148.4428]
[1770215862629,1.03982872,94.608,94.464,3.81480982]
[1770215862829,1.03982872,94.579,94.483,9.5393]
[1770215863039,9.5305,94.571,94.483,9.5393]
[1770215863232,10.57032872,94.571,94.483,9.5393]
[1770215863433,1.03982872,94.571,94.464,3.81480982]
[1770215863630,9.5319,94.556,94.464,3.81480982]
[1770215863935,1.25546558,94.549,94.454,9.5422]
[1770215864138,1.25546558,94.549,94.435,3.81480982]
[1770215864528,1.25546558,94.549,94.462,9.5414]
[1770215864734,9.5329,94.547,94.435,3.81480982]
[1770215864931,9.5329,94.547,94.475,9.5401]
[1770215865134,9.5329,94.547,94.435,3.81480982]
[1770215865328,9.5341,94.535,94.435,3.81480982]
[1770215865530,142.52,94.563,94.435,3.81480982]
[1770215865733,1.25546558,94.579,94.435,3.81480982]
[1770215866033,1.25546558,94.579,94.461,9.5414]
[1770215866338,9.5319,94.557,94.435,3.81480982]
[1770215866734,1.43082738,94.577,94.465,3.81480982]
[1770215866937,1.43082738,94.525,94.419,3.81480982]
[1770215867234,1.43082738,94.539,94.419,3.81480982]
[1770215867531,9.534,94.536,94.419,3.81480982]
[1770215867736,1.43082738,94.539,94.419,3.81480982]
[1770215867928,9.5354,94.522,94.436,9.544]
[1770215868132,9.5354,94.522,94.419,3.81480982]
[1770215868641,9.5371,94.505,94.419,3.81480982]
[1770215868937,1.48056727,94.535,94.441,9.5435]
[1770215869133,9.5367,94.509,94.419,3.81480982]
[1770215869441,1.48056727,94.535,94.419,3.81480982]
[1770215869738,9.5385,94.492,94.419,3.81480982]
[1770215869936,1.48056727,94.507,94.39,3.81480982]
[1770215870135,9.5397,94.479,94.404,9.5472]
[1770215870530,9.5397,94.479,94.39,3.81480982]
[1770215870834,9.5397,94.479,94.404,9.5472]
[1770215871341,1.52922449,94.479,94.375,3.81480982]
[1770215871835,9.5406,94.47,94.392,9.5484]
[1770215872138,9.5406,94.47,94.375,3.81480982]
[1770215872339,1.52922449,94.479,94.375,3.81480982]
[1770215872538,1.52922449,94.479,94.346,3.81480982]
[1770215872937,1.57969851,94.449,94.317,3.81480982]
[1770215873137,1.57969851,94.447,94.317,3.81480982]
[1770215873337,1.57969851,94.409,94.285,3.81480982]
[1770215873531,1.57969851,94.399,94.287,9.5591]
[1770215873736,1.57969851,94.399,94.285,3.81480982]
[1770215874338,1.57969851,94.399,94.289,3.97881957]
[1770215874647,1.6236347,94.427,94.289,3.97881957]
[1770215874940,9.5462,94.416,94.331,3.97881957]
[1770215875347,9.5462,94.416,94.333,9.5544]
[1770215875536,9.5475,94.402,94.331,3.97881957]
[1770215875742,1.6236347,94.413,94.271,3.97881957]
[1770215876039,1.6236347,94.413,94.315,3.97881957]
[1770215876040,9.5477,94.4,94.315,3.97881957]
[1770215876235,34.1966754,94.43,94.315,3.97881957]
[1770215876440,9.5461,94.416,94.317,3.97881957]
[1770215876636,1.63561406,94.429,94.319,3.97881957]
[1770215876835,1.63561406,94.427,94.336,9.5541]
[1770215877044,9.546,94.417,94.336,9.5541]
[1770215877339,141.94,94.448,94.319,3.97881957]
[1770215877545,9.5445,94.432,94.36,9.5517]
[1770215877844,1.63561406,94.456,94.361,3.9009582]
[1770215878345,1.63561406,94.456,94.363,3.9009582]
[1770215878540,141.96,94.471,94.363,3.9009582]
[1770215878740,1.65826026,94.47,94.33,34.1966754]
[1770215878944,1.65826026,94.459,94.329,3.9009582]
[1770215879238,9.5473,94.404,94.337,9.554]
[1770215879443,1.65826026,94.457,94.337,3.9009582]
[1770215879845,1.65826026,94.457,94.339,3.9009582]
[1770215880040,1.65826026,94.457,94.341,3.9009582]
[1770215880239,1.90330714,94.449,94.341,3.9009582]
[1770215880438,1.90330714,94.449,94.342,9.5535]
[1770215880838,9.5479,94.399,94.318,9.5559]
[1770215881036,34.1966754,94.45,94.26,182.9366754]
[1770215881037,1.90330714,94.447,94.307,3.9009582]
[1770215881237,1.90330714,94.477,94.327,148.6342]
[1770215881436,9.5426,94.451,94.375,3.9009582]
[1770215881636,1.90330714,94.477,94.375,3.9009582]
[1770215881947,9.541,94.466,94.394,9.5482]
[1770215882145,2.00023312,94.495,94.393,3.9009582]
[1770215882343,2.00023312,94.474,94.365,3.9009582]
[1770215882644,9.5398,94.478,94.402,3.9009582]
[1770215882841,2.00023312,94.5,94.371,3.9009582]
[1770215883042,2.00023312,94.473,94.371,3.9009582]
[1770215883444,2.00023312,94.449,94.291,3.9009582]
[1770215883744,2.00023312,94.447,94.322,3.9009582]
[1770215884046,9.5452,94.425,94.356,9.5521]
[1770215884241,2.00023312,94.447,94.322,3.9009582]
[1770215884544,9.5492,94.386,94.322,3.9009582]
[1770215884746,1.98450705,94.419,94.322,3.9009582]
[1770215885148,34.1966754,94.44,94.322,3.9009582]
[1770215885451,148.3561,94.505,94.323,2.65166187]
[1770215885452,34.1966754,94.47,94.323,2.65166187]
[1770215885742,1.98450705,94.465,94.365,3.9009582]
[1770215886044,148.3863,94.486,94.271,148.7221]
[1770215886045,1.98450705,94.494,94.367,3.9009582]
[1770215886247,148.2797,94.554,94.344,148.607]
[1770215886248,2.31074246,94.485,94.369,3.9009582]
[1770215886440,2.31074246,94.459,94.369,3.9009582]
[1770215886747,2.31074246,94.459,94.34,3.9009582]
[1770215886943,2.31074246,94.488,94.342,3.9009582]
[1770215887135,2.31074246,94.459,94.349,3.9009582]
[1770215887335,142.78,94.487,94.351,3.9009582]
[1770215887336,2.31074246,94.487,94.351,3.9009582]
[1770215887541,2.31074246,94.516,94.366,3.9009582]
[1770215887743,2.31074246,94.516,94.406,3.9009582]
[1770215887941,2.31074246,94.516,94.408,3.9009582]
[1770215888145,9.5366,94.51,94.41,3.9009582]
[1770215888342,34.1966754,94.55,94.412,3.9009582]
[1770215888543,36.76852194,94.55,94.414,3.9009582]
[1770215888743,2.57184654,94.549,94.44,3.9009582]
[1770215888943,2.57184654,94.547,94.442,3.9009582]
[1770215889143,46.19575415,94.637,94.475,148.4019]
[1770215889346,46.19575415,94.637,94.49,34.1966754]
[1770215889547,46.19575415,94.637,94.491,126.19059716]
[1770215889740,46.19575415,94.637,94.492,2.65059716]
[1770215889939,46.19575415,94.637,94.493,2.65059716]
[1770215890149,46.24657372,94.62,94.494,2.65059716]
[1770215890347,9.5296,94.579,94.497,9.5378]
[1770215890542,46.24657372,94.592,94.498,2.65059716]
[1770215890747,46.24657372,94.592,94.499,2.65059716]
[1770215890944,46.24657372,94.592,94.501,9.5375]
[1770215891150,46.24657372,94.592,94.502,2.65059716]
[1770215891343,46.24657372,94.592,94.503,2.65059716]
[1770215891544,9.5286,94.59,94.509,9.5366]
[1770215891748,46.24657372,94.626,94.51,2.65059716]
[1770215891947,9.525,94.625,94.511,2.65059716]
[1770215892146,9.525,94.625,94.461,148.4232]
[1770215892147,46.42488403,94.654,94.53,34.1966754]
[1770215892346,46.42488403,94.699,94.531,126.35059716]
[1770215892550,46.42488403,94.657,94.532,2.65059716]
[1770215892743,46.42488403,94.657,94.475,148.4009]
[1770215892744,46.42488403,94.639,94.533,2.65059716]
[1770215892948,9.5279,94.596,94.534,2.65059716]
[1770215893142,46.42488403,94.609,94.535,9.716e-05]
[1770215893449,9.5253,94.622,94.483,148.3886]
[1770215893655,46.42488403,94.636,94.483,148.3886]
[1770215893656,46.42488403,94.636,94.51,34.1966754]
[1770215894042,34.1966754,94.67,94.557,148.2735]
[1770215894043,46.41678533,94.67,94.557,148.2735]
[1770215894245,46.41678533,94.67,94.51,34.1966754]
[1770215894246,46.41678533,94.669,94.51,34.1966754]
[1770215894446,143.28,94.668,94.51,34.1966754]
[1770215894646,46.41678533,94.637,94.499,123.86]
[1770215894955,148.0949,94.672,94.48,34.1966754]
[1770215894956,46.41678533,94.641,94.486,148.3845]
[1770215895146,148.0314,94.712,94.48,34.1966754]
[1770215895147,46.41678533,94.638,94.48,34.1966754]
[1770215895349,46.41678533,94.629,94.48,34.1966754]
[1770215895744,46.41678533,94.629,94.486,148.384]
[1770215896046,46.41678533,94.629,94.48,34.1966754]
[1770215896246,46.41678533,94.629,94.53,9.5345]
[1770215896449,46.41678533,94.629,94.481,124.38]
[1770215896646,46.41678533,94.629,94.49,148.3787]
[1770215896851,46.70488148,94.669,94.538,148.3022]
[1770215897048,46.70488148,94.669,94.482,124.38]
[1770215897049,46.70488148,94.699,94.58,34.1966754]
[1770215897245,46.70488148,94.699,94.614,9.526]
[1770215897445,46.70488148,94.73,94.586,148.2278]
[1770215897643,46.70488148,94.73,94.58,34.1966754]
[1770215897644,46.70488148,94.73,94.587,124.48]
[1770215897953,46.70488148,94.713,94.562,124.52]
[1770215898150,194.50207378,94.695,94.556,124.52]
[1770215898348,46.44407378,94.634,94.527,9.5348]
[1770215898545,46.44407378,94.634,94.487,124.54]
[1770215898850,9.5243,94.632,94.535,9.534]
[1770215899054,46.44407378,94.667,94.517,148.3349]
[1770215899255,46.44407378,94.667,94.53,34.1966754]
[1770215899447,46.44407378,94.667,94.5,34.1966754]
[1770215899647,46.44407378,94.655,94.519,124.54]
[1770215899949,46.44407378,94.639,94.498,124.68]
[1770215900149,46.44407378,94.639,94.5,34.1966754]
[1770215900355,46.43309804,94.668,94.511,148.3455]
[1770215900557,46.43309804,94.668,94.542,148.297]
[1770215900755,46.43309804,94.668,94.53,34.1966754]
[1770215901055,9.5249,94.626,94.532,9.5343]
[1770215901255,46.43309804,94.639,94.519,124.96]
[1770215901656,46.43309804,94.637,94.519,124.96]
[1770215902050,46.43309804,94.637,94.561,9.5313]
[1770215902355,46.48978609,94.666,94.53,34.1966754]
[1770215902757,46.48978609,94.657,94.5,34.1966754]
[1770215902951,46.48978609,94.639,94.47,34.1966754]
[1770215903262,46.48978609,94.639,94.364,178.0]
[1770215903263,46.48978609,94.593,94.447,124.94]
[1770215903459,46.48978609,94.579,94.447,124.94]
[1770215903655,46.53374831,94.54,94.452,9.5423]
[1770215903861,46.53374831,94.54,94.412,125.3]
[1770215904052,46.53374831,94.54,94.413,125.32]
[1770215904554,46.53374831,94.54,94.401,148.5175]
[1770215904857,46.53374831,94.569,94.4,22.89039865]
[1770215905055,46.53374831,94.569,94.414,148.4981]
[1770215905258,46.53374831,94.555,94.415,2.64822956]
[1770215905455,46.53374831,94.555,94.416,2.64822956]
[1770215905650,46.53374831,94.539,94.417,2.64822956]
[1770215905956,148.264,94.564,94.37,22.89039865]
[1770215905957,46.53374831,94.503,94.37,22.89039865]
[1770215906160,46.53374831,94.503,94.37,148.83039865]
[1770215906848,46.53374831,94.503,94.374,148.5607]
[1770215907158,46.53374831,94.503,94.373,148.5614]
[1770215907360,46.53374831,94.503,94.378,148.5539]
[1770215907556,46.53374831,94.503,94.379,148.552]
[1770215907754,46.53374831,94.503,94.37,148.83039865]
[1770215908050,9.5402,94.474,94.384,9.5493]
[1770215908448,46.45410707,94.503,94.377,127.1]
[1770215908755,46.45410707,94.489,94.34,22.89039865]
[1770215908949,46.45410707,94.487,94.31,22.89039865]
[1770215909153,144.5,94.488,94.31,22.89039865]
[1770215909154,46.45410707,94.453,94.364,9.5513]
[1770215909752,46.45410707,94.453,94.377,9.5499]
[1770215909954,46.45410707,94.487,94.37,22.89039865]
[1770215910155,46.44194436,94.473,94.374,9.5503]
[1770215910355,46.44194436,94.473,94.375,127.5]
[1770215910656,46.44194436,94.471,94.375,137.0501]
[1770215910856,46.44194436,94.471,94.34,22.89039865]
[1770215911058,46.44194436,94.471,94.341,127.56]
[1770215911758,144.62,94.487,94.31,22.89039865]
[1770215911759,46.44194436,94.435,94.31,22.89039865]
[1770215911955,46.44194436,94.435,94.311,127.6]
[1770215912461,9.5466,94.411,94.322,9.5555]
[1770215912658,46.44194436,94.435,94.312,127.64]
[1770215912961,9.5444,94.433,94.346,9.5531]
[1770215913256,46.44527106,94.469,94.34,22.89039865]
[1770215913456,55.98627106,94.467,94.319,148.6473]
[1770215913655,46.44527106,94.497,94.36,22.89039865]
[1770215913857,46.44527106,94.497,94.342,148.611]
[1770215914064,46.44527106,94.497,94.36,22.89039865]
[1770215914356,46.44527106,94.497,94.409,9.5467]
[1770215914662,46.44527106,94.497,94.36,22.89039865]
[1770215914858,9.5411,94.466,94.376,9.55]
[1770215915061,46.42512021,94.465,94.376,9.55]
[1770215915262,46.42512021,94.465,94.371,127.78]
[1770215915557,46.42512021,94.494,94.373,148.5624]
[1770215915858,46.42512021,94.547,94.377,148.5563]
[1770215916061,22.89039865,94.55,94.374,127.78]
[1770215916062,46.42512021,94.512,94.374,127.78]
[1770215916461,46.44189125,94.484,94.36,22.89039865]
[1770215916659,46.44189125,94.484,94.361,128.1]
[1770215916863,46.44189125,94.484,94.354,148.5926]
[1770215917058,46.44189125,94.484,94.35,22.89039865]
[1770215917059,46.44189125,94.484,94.358,148.5852]
[1770215917257,46.44189125,94.531,94.38,22.89039865]
[1770215917566,46.44189125,94.531,94.387,148.5399]
[1770215917764,9.5355,94.521,94.447,9.5429]
[1770215918066,9.5355,94.521,94.376,19.1003]
[1770215918067,46.44189125,94.531,94.421,128.14]
[1770215918562,359.9766,94.619,94.413,148.4985]
[1770215918563,46.43912738,94.558,94.44,22.89039865]
[1770215918759,46.43912738,94.612,94.47,22.89039865]
[1770215919264,46.43912738,94.57,94.473,9.5403]
[1770215919560,46.43912738,94.57,94.456,128.28]
[1770215919758,9.5317,94.559,94.469,9.5406]
[1770215919954,46.43912738,94.57,94.456,128.28]
[1770215920363,46.4435145,94.553,94.467,9.5408]
[1770215920555,46.4435145,94.553,94.456,128.28]
[1770215920556,46.4435145,94.553,94.415,128.32]
[1770215920755,46.4435145,94.543,94.383,128.32]
[1770215920966,9.5383,94.494,94.384,128.34]
[1770215921162,46.4435145,94.496,94.384,128.34]
[1770215921662,46.4435145,94.496,94.386,148.5421]
[1770215921863,46.4435145,94.536,94.41,148.503]
[1770215922064,46.4435145,94.579,94.43,22.89039865]
[1770215922258,46.4435145,94.579,94.469,9.5406]
[1770215922460,46.4435145,94.579,94.469,128.76]
[1770215922658,9.5305,94.571,94.478,9.5397]
[1770215922866,46.4435145,94.579,94.439,128.72]
[1770215923260,9.5329,94.547,94.464,9.5412]
[1770215923765,46.4435145,94.579,94.439,128.72]
[1770215923965,46.4435145,94.579,94.383,148.5463]
[1770215923966,46.47084361,94.623,94.48,22.89039865]
[1770215924364,9.5307,94.568,94.483,9.5392]
[1770215924562,9.5307,94.568,94.456,128.84]
[1770215924769,46.44873663,94.581,94.456,128.84]
[1770215925464,46.44873663,94.581,94.457,128.98]
[1770215926770,56.00870193,94.566,94.457,128.98]
[1770215926965,46.47780193,94.566,94.457,128.98]
[1770215927367,46.47780193,94.566,94.489,9.5386]
[1770215927968,9.5313,94.563,94.489,9.5386]
[1770215928167,9.5313,94.563,94.457,128.98]
[1770215928168,46.62419354,94.563,94.457,128.98]
[1770215928369,46.62419354,94.529,94.42,22.89039865]
[1770215928561,46.62419354,94.558,94.465,9.5411]
[1770215928761,46.62419354,94.558,94.421,129.2]
[1770215928965,56.15879354,94.53,94.421,129.2]
[1770215929165,46.62419354,94.53,94.44,9.5436]
[1770215929364,46.62419354,94.53,94.421,129.2]
[1770215929868,22.89039865,94.58,94.427,148.4766]
[1770215930074,22.89039865,94.58,94.421,129.2]
[1770215930075,46.62419354,94.579,94.425,19.0903]
[1770215930371,46.62419354,94.579,94.476,9.54]
[1770215930571,46.63177205,94.557,94.436,148.4631]
[1770215930873,46.63177205,94.557,94.426,148.4782]
[1770215931073,46.63177205,94.557,94.435,148.465]
[1770215931469,46.63177205,94.557,94.441,148.4556]
[1770215931672,46.63177205,94.584,94.45,22.89039865]
[1770215931971,46.63177205,94.612,94.502,148.3588]
[1770215932167,46.63575485,94.669,94.51,22.89039865]
[1770215932370,46.63575485,94.669,94.565,9.531]
[1770215932569,9.5245,94.63,94.51,22.89039865]
[1770215933169,9.5256,94.62,94.51,22.89039865]
[1770215933368,56.16135485,94.62,94.511,130.28]
[1770215933670,56.16135485,94.62,94.463,148.4207]
[1770215933671,46.67179303,94.595,94.48,22.89039865]
[1770215933864,46.67179303,94.595,94.481,130.3]
[1770215934381,46.67179303,94.595,94.45,22.89039865]
[1770215934674,46.67179303,94.595,94.453,148.4368]
[1770215934976,46.67179303,94.595,94.454,130.44]